fUST/lending_fUST_20240416
["ID","MTS","AMOUNT","RATE_DAILY","PERIOD"]
[322753368,1713245439399,-3048.49,0.00034246,5]
[322753369,1713245439408,-500.0,0.00034246,7]
[322753370,1713245439418,-500.0,0.00034246,7]
[322753371,1713245439427,-500.0,0.00034246,7]
[322753372,1713245439436,-500.0,0.00034246,7]
[322753373,1713245439445,-500.0,0.00034246,7]
[322753374,1713245439454,-500.0,0.00034246,7]
[322753375,1713245439464,-500.0,0.00034246,7]
[322753376,1713245439473,-503.32546128,0.00034246,7]
[322753377,1713245439482,-500.11648049,0.00034246,7]
[322753378,1713245439491,-500.0,0.00034246,7]
[322753379,1713245439500,-502.44070566,0.00034246,7]
[322753380,1713245439509,-500.0,0.00034246,7]
[322753381,1713245439518,-502.09719118,0.00034246,7]
[322753382,1713245439528,-500.0,0.00034246,7]
[322753383,1713245439539,-500.0,0.00034246,7]
[322753384,1713245439548,-500.0,0.00034246,7]
[322753385,1713245439557,-500.0,0.00034246,7]
[322753386,1713245439566,-500.0,0.00034246,7]
[322753387,1713245439576,-500.0,0.00034246,7]
[322753388,1713245439585,-500.0,0.00034246,7]
[322753389,1713245439594,-500.0,0.00034246,7]
[322753390,1713245439603,-500.0,0.00034246,7]
[322753391,1713245439612,-500.0,0.00034246,7]
[322753392,1713245439621,-500.0,0.00034246,7]
[322753393,1713245439630,-151.0,0.00034246,2]
[322753394,1713245439640,-151.0,0.00034246,2]
[322753395,1713245439649,-151.0,0.00034246,2]
[322753396,1713245439659,-151.0,0.00034246,2]
[322753397,1713245439668,-151.0,0.00034246,2]
[322753398,1713245439677,-161.983954,0.00034246,2]
[322753399,1713245439687,-500.0,0.00034246,7]
[322753400,1713245439695,-362.5167433,0.00034246,7]
[322753401,1713245439705,-500.0,0.00034246,7]
[322753402,1713245439714,-500.0,0.00034246,7]
[322753403,1713245439723,-500.0,0.00034246,7]
[322753404,1713245439733,-500.0,0.00034246,7]
[322753405,1713245439742,-232.54,0.00034246,7]
[322753406,1713245439751,-501.14744135,0.00034246,7]
[322753407,1713245439761,-502.01171155,0.00034246,7]
[322753408,1713245439771,-500.0,0.00034246,7]
[322753409,1713245439782,-151.0,0.00034246,2]
[322753410,1713245439791,-151.0,0.00034246,2]
[322753411,1713245439801,-151.0,0.00034246,2]
[322753412,1713245439810,-151.306515,0.00034246,2]
[322753413,1713245439820,-500.0,0.00034246,7]
[322753414,1713245439830,-500.0,0.00034246,7]
[322753415,1713245439839,-500.0,0.00034246,7]
[322753416,1713245439849,-500.0,0.00034246,7]
[322753417,1713245439858,-515.64936689,0.00034246,7]
[322753418,1713245439868,-151.0,0.00034246,2]
[322753419,1713245439878,-151.0,0.00034246,2]
[322753420,1713245439890,-151.0,0.00034246,2]
[322753421,1713245439900,-151.0,0.00034246,2]
[322753422,1713245439909,-500.0,0.00034246,7]
[322753423,1713245439919,-500.0,0.00034246,7]
[322753424,1713245439929,-500.0,0.00034246,7]
[322753425,1713245439939,-500.0,0.00034246,7]
[322753426,1713245439948,-500.0,0.00034246,7]
[322753427,1713245439959,-500.0,0.00034246,7]
[322753428,1713245439969,-517.75190061,0.00034246,7]
[322753429,1713245439979,-581.09896928,0.00034246,7]
[322753430,1713245439990,-333.675332,0.00034246,2]
[322753432,1713245439999,-333.675332,0.00034246,2]
[322753434,1713245440009,-333.675332,0.00034246,2]
[322753435,1713245440018,-333.675332,0.00034246,2]
[322753436,1713245440028,-333.675332,0.00034246,2]
[322753437,1713245440038,-333.675332,0.00034246,2]
[322753438,1713245440047,-333.675332,0.00034246,2]
[322753439,1713245440056,-333.675332,0.00034246,2]
[322753440,1713245440066,-333.675332,0.00034246,2]
[322753441,1713245440075,-333.675332,0.00034246,2]
[322753442,1713245440084,-333.675332,0.00034246,2]
[322753443,1713245440093,-333.675332,0.00034246,2]
[322753444,1713245440103,-333.675332,0.00034246,2]
[322753445,1713245440111,-333.675332,0.00034246,2]
[322753446,1713245440120,-333.675332,0.00034246,2]
[322753447,1713245440130,-500.0,0.00034246,7]
[322753448,1713245440139,-333.675332,0.00034246,2]
[322753449,1713245440147,-500.0,0.00034246,7]
[322753450,1713245440156,-500.0,0.00034246,7]
[322753451,1713245440165,-500.0,0.00034246,7]
[322753452,1713245440175,-503.59983779,0.00034246,7]
[322753453,1713245440184,-151.0,0.00034246,2]
[322753454,1713245440193,-151.0,0.00034246,2]
[322753455,1713245440203,-151.0,0.00034246,2]
[322753456,1713245440212,-151.0,0.00034246,2]
[322753457,1713245440222,-151.0,0.00034246,2]
[322753458,1713245440232,-151.0,0.00034246,2]
[322753459,1713245440241,-151.0,0.00034246,2]
[322753460,1713245440250,-151.0,0.00034246,2]
[322753461,1713245440260,-200.17626,0.00034246,2]
[322753462,1713245440269,-500.0,0.00034246,7]
[322753463,1713245440280,-500.0,0.00034246,7]
[322753464,1713245440289,-151.0,0.00034246,2]
[322753465,1713245440298,-155.762909,0.00034246,2]
[322753466,1713245440307,-500.0,0.00034246,7]
[322753467,1713245440316,-500.0,0.00034246,7]
[322753468,1713245440326,-500.0,0.00034246,7]
[322753469,1713245440334,-500.0,0.00034246,7]
[322753470,1713245440344,-500.0,0.00034246,7]
[322753471,1713245440353,-500.0,0.00034246,7]
[322753472,1713245440362,-500.0,0.00034246,7]
[322753473,1713245440371,-500.0,0.00034246,7]
[322753474,1713245440380,-500.0,0.00034246,7]
[322753475,1713245440389,-500.0,0.00034246,7]
[322753476,1713245440398,-500.0,0.00034246,7]
[322753477,1713245440407,-500.0,0.00034246,7]
[322753478,1713245440417,-500.0,0.00034246,7]
[322753479,1713245440426,-500.0,0.00034246,7]
[322753480,1713245440436,-500.0,0.00034246,7]
[322753482,1713245440446,-500.0,0.00034246,7]
[322753483,1713245440456,-213.22013075,0.00034246,7]
[322753484,1713245440468,-500.0,0.00034246,7]
[322753486,1713245440477,-500.0,0.00034246,7]
[322753488,1713245440487,-500.0,0.00034246,7]
[322753490,1713245440497,-500.0,0.00034246,7]
[322753491,1713245440508,-500.0,0.00034246,7]
[322753492,1713245440517,-500.0,0.00034246,7]
[322753493,1713245440527,-1014.185639,0.00034246,2]
[322753494,1713245440538,-1014.185639,0.00034246,2]
[322753495,1713245440548,-500.0,0.00034246,7]
[322753496,1713245440557,-1014.185639,0.00034246,2]
[322753497,1713245440566,-1014.185639,0.00034246,2]
[322753498,1713245440575,-1014.185639,0.00034246,2]
[322753499,1713245440585,-1014.185639,0.00034246,2]
[322753500,1713245440594,-1014.185639,0.00034246,2]
[322753501,1713245440604,-1014.185639,0.00034246,2]
[322753502,1713245440613,-1014.185639,0.00034246,2]
[322753503,1713245440622,-1014.185639,0.00034246,2]
[322753504,1713245440632,-1014.185639,0.00034246,2]
[322753505,1713245440641,-1014.185639,0.00034246,2]
[322753506,1713245440651,-1014.185639,0.00034246,2]
[322753507,1713245440660,-500.0,0.00034246,7]
[322753508,1713245440670,-500.0,0.00034246,7]
[322753509,1713245440682,-1014.185639,0.00034246,2]
[322753510,1713245440692,-1014.185639,0.00034246,2]
[322753511,1713245440701,-1014.185639,0.00034246,2]
[322753512,1713245440711,-1014.185639,0.00034246,2]
[322753513,1713245440720,-1014.185639,0.00034246,2]
[322753514,1713245440729,-500.0,0.00034246,7]
[322753515,1713245440739,-500.0,0.00034246,7]
[322753516,1713245440749,-151.0,0.00034246,2]
[322753517,1713245440758,-254.530166,0.00034246,2]
[322753518,1713245440768,-151.0,0.00034246,2]
[322753519,1713245440777,-151.0,0.00034246,2]
[322753520,1713245440791,-151.0,0.00034246,2]
[322753521,1713245440800,-151.0,0.00034246,2]
[322753522,1713245440810,-291.085375,0.00034246,2]
[322753523,1713245440819,-500.0,0.00034246,7]
[322753524,1713245440828,-500.0,0.00034246,7]
[322753525,1713245440837,-500.0,0.00034246,7]
[322753526,1713245440847,-502.99771946,0.00034246,7]
[322753527,1713245440856,-501.43961186,0.00034246,7]
[322753528,1713245440866,-500.0,0.00034246,7]
[322753529,1713245440879,-500.0,0.00034246,7]
[322753530,1713245440889,-500.0,0.00034246,7]
[322753531,1713245440898,-500.0,0.00034246,7]
[322753532,1713245440908,-151.0,0.00034246,2]
[322753533,1713245440918,-500.0,0.00034246,7]
[322753534,1713245440927,-500.0,0.00034246,7]
[322753535,1713245440937,-151.0,0.00034246,2]
[322753536,1713245440947,-500.0,0.00034246,7]
[322753537,1713245440957,-151.0,0.00034246,2]
[322753538,1713245440967,-500.0,0.00034246,7]
[322753539,1713245440976,-151.0,0.00034246,2]
[322753540,1713245440985,-500.0,0.00034246,7]
[322753541,1713245440995,-500.0,0.00034246,7]
[322753542,1713245441005,-151.0,0.00034246,2]
[322753543,1713245441014,-500.0,0.00034246,7]
[322753544,1713245441024,-500.0,0.00034246,7]
[322753545,1713245441036,-500.0,0.00034246,7]
[322753546,1713245441046,-151.0,0.00034246,2]
[322753547,1713245441054,-500.0,0.00034246,7]
[322753548,1713245441063,-500.0,0.00034246,7]
[322753549,1713245441072,-241.53,0.00034246,7]
[322753550,1713245441081,-151.0,0.00034246,2]
[322753551,1713245441090,-151.0,0.00034246,2]
[322753552,1713245441100,-275.227098,0.00034246,2]
[322753553,1713245441109,-500.0,0.00034246,7]
[322753554,1713245441118,-500.0,0.00034246,7]
[322753555,1713245441127,-500.0,0.00034246,7]
[322753556,1713245441136,-500.0,0.00034246,7]
[322753557,1713245441146,-500.0,0.00034246,7]
[322753558,1713245441155,-500.0,0.00034246,7]
[322753559,1713245441165,-500.0,0.00034246,7]
[322753560,1713245441174,-500.0,0.00034246,7]
[322753561,1713245441183,-500.0,0.00034246,7]
[322753562,1713245441193,-500.0,0.00034246,7]
[322753563,1713245441202,-500.0,0.00034246,7]
[322753564,1713245441211,-500.0,0.00034246,7]
[322753565,1713245441221,-500.0,0.00034246,7]
[322753566,1713245441231,-500.0,0.00034246,7]
[322753567,1713245441240,-500.0,0.00034246,7]
[322753568,1713245441250,-500.84,0.00034246,7]
[322753569,1713245441260,-500.0,0.00034246,7]
[322753570,1713245441269,-500.0,0.00034246,7]
[322753571,1713245441281,-500.0,0.00034246,7]
[322753572,1713245441291,-500.0,0.00034246,7]
[322753573,1713245441300,-500.0,0.00034246,7]
[322753574,1713245441310,-500.0,0.00034246,7]
[322753575,1713245441320,-500.0,0.00034246,7]
[322753576,1713245441329,-500.0,0.00034246,7]
[322753577,1713245441338,-500.0,0.00034246,7]
[322753578,1713245441348,-155.793107,0.00034246,2]
[322753579,1713245441358,-500.0,0.00034246,7]
[322753580,1713245441367,-500.0,0.00034246,7]
[322753581,1713245441377,-500.0,0.00034246,7]
[322753582,1713245441386,-386.01879794,0.00034246,7]
[322753583,1713245441395,-151.0,0.00034246,2]
[322753584,1713245441405,-151.0,0.00034246,2]
[322753585,1713245441415,-151.0,0.00034246,2]
[322753586,1713245441425,-151.0,0.00034246,2]
[322753587,1713245441434,-151.0,0.00034246,2]
[322753588,1713245441445,-151.0,0.00034246,2]
[322753589,1713245441455,-151.0,0.00034246,2]
[322753590,1713245441464,-151.0,0.00034246,2]
[322753591,1713245441474,-151.0,0.00034246,2]
[322753592,1713245441483,-500.0,0.00034246,7]
[322753593,1713245441493,-151.0,0.00034246,2]
[322753594,1713245441503,-151.0,0.00034246,2]
[322753595,1713245441512,-500.0,0.00034246,7]
[322753596,1713245441522,-151.0,0.00034246,2]
[322753597,1713245441532,-151.0,0.00034246,2]
[322753598,1713245441541,-151.0,0.00034246,2]
[322753599,1713245441551,-500.0,0.00034246,7]
[322753600,1713245441561,-151.0,0.00034246,2]
[322753601,1713245441570,-500.0,0.00034246,7]
[322753602,1713245441579,-500.0,0.00034246,7]
[322753603,1713245441589,-151.0,0.00034246,2]
[322753604,1713245441598,-500.0,0.00034246,7]
[322753605,1713245441607,-208.677072,0.00034246,2]
[322753606,1713245441617,-500.0,0.00034246,7]
[322753607,1713245441627,-259.32473764,0.00034246,7]
[322753608,1713245441637,-500.0,0.00034246,7]
[322753609,1713245441646,-500.0,0.00034246,7]
[322753610,1713245441655,-500.0,0.00034246,7]
[322753611,1713245441664,-500.0,0.00034246,7]
[322753612,1713245441673,-500.0,0.00034246,7]
[322753613,1713245441682,-500.0,0.00034246,7]
[322753614,1713245441692,-500.0,0.00034246,7]
[322753615,1713245441701,-500.0,0.00034246,7]
[322753616,1713245441710,-464.36533988,0.00034246,7]
[322753617,1713245441719,-151.0,0.00034246,2]
[322753618,1713245441729,-151.0,0.00034246,2]
[322753619,1713245441739,-151.0,0.00034246,2]
[322753620,1713245441749,-151.0,0.00034246,2]
[322753621,1713245441758,-151.0,0.00034246,2]
[322753622,1713245441767,-151.0,0.00034246,2]
[322753623,1713245441777,-151.0,0.00034246,2]
[322753624,1713245441788,-151.0,0.00034246,2]
[322753625,1713245441798,-151.0,0.00034246,2]
[322753626,1713245441808,-500.0,0.00034246,7]
[322753627,1713245441817,-500.0,0.00034246,7]
[322753628,1713245441827,-151.0,0.00034246,2]
[322753629,1713245441837,-500.0,0.00034246,7]
[322753630,1713245441846,-190.183133,0.00034246,2]
[322753631,1713245441855,-510.83693598,0.00034246,7]
[322753632,1713245441865,-500.0,0.00034246,7]
[322753633,1713245441874,-500.0,0.00034246,7]
[322753634,1713245441889,-500.0,0.00034246,7]
[322753635,1713245441898,-151.0,0.00034246,2]
[322753636,1713245441907,-151.0,0.00034246,2]
[322753637,1713245441915,-151.0,0.00034246,2]
[322753638,1713245441926,-151.943823,0.00034246,2]
[322753639,1713245441936,-500.0,0.00034246,7]
[322753640,1713245441946,-500.0,0.00034246,7]
[322753641,1713245441956,-500.0,0.00034246,7]
[322753642,1713245441967,-500.0,0.00034246,7]
[322753643,1713245441977,-500.0,0.00034246,7]
[322753644,1713245441987,-500.0,0.00034246,7]
[322753645,1713245441996,-500.0,0.00034246,7]
[322753646,1713245442007,-500.0,0.00034246,7]
[322753647,1713245442016,-629.86596315,0.00034246,7]
[322753648,1713245442026,-500.0,0.00034246,7]
[322753649,1713245442037,-500.0,0.00034246,7]
[322753650,1713245442046,-500.0,0.00034246,7]
[322753651,1713245442055,-500.0,0.00034246,7]
[322753652,1713245442064,-500.0,0.00034246,7]
[322753653,1713245442180,-495.0,0.00034246,7]
[322753654,1713245442191,-500.0,0.00034246,7]
[322753655,1713245442201,-500.0,0.00034246,7]
[322753656,1713245442210,-500.0,0.00034246,7]
[322753657,1713245442220,-500.0,0.00034246,7]
[322753658,1713245442230,-500.0,0.00034246,7]
[322753659,1713245442241,-500.0,0.00034246,7]
[322753660,1713245442250,-500.0,0.00034246,7]
[322753661,1713245442260,-500.0,0.00034246,7]
[322753662,1713245442270,-518.28270878,0.00034246,7]
[322753663,1713245442279,-500.0,0.00034246,7]
[322753664,1713245442289,-500.0,0.00034246,7]
[322753665,1713245442299,-500.0,0.00034246,7]
[322753666,1713245442309,-500.0,0.00034246,7]
[322753667,1713245442319,-500.0,0.00034246,7]
[322753668,1713245442329,-500.0,0.00034246,7]
[322753669,1713245442339,-500.0,0.00034246,7]
[322753670,1713245442349,-500.0,0.00034246,7]
[322753671,1713245442359,-483.69264445,0.00034246,7]
[322753750,1713245958612,10000.0,0.000252,30]
[322753752,1713246530924,250.0,0.0001731,2]
[322753753,1713246555413,-500.0,0.00033997,120]
[322753754,1713246555438,-500.0,0.00033997,120]
[322753755,1713246555461,-500.0,0.00033997,120]
[322753756,1713246555484,-500.0,0.00033997,120]
[322753757,1713246555509,-500.0,0.00033997,120]
[322753758,1713246555532,-500.0,0.00033997,120]
[322753759,1713246555556,-500.0,0.00033997,120]
[322753760,1713246555579,-500.0,0.00033997,120]
[322753761,1713246555603,-500.0,0.00033997,120]
[322753762,1713246555632,-135364.46040465,0.00034246,60]
[322753763,1713246555743,-2827.82860515,0.0003498,120]
[322753764,1713246577459,8750.0,0.00017379,2]
[322753766,1713246606108,651.87717,0.00016512,2]
[322753767,1713246630505,1943.2804486,0.00016441,2]
[322753807,1713246632203,-467.74734708,0.00017376,2]
[322753808,1713246632213,-156.3137023,0.00017377,2]
[322753809,1713246632224,-300.0,0.00017378,2]
[322753810,1713246632235,-160.61722274,0.00017378,2]
[322753811,1713246632247,-7696.42766129,0.00017378,2]
[322753812,1713246632257,-16130.0,0.00017379,2]
[322753815,1713246632267,-35443.654293,0.00017487,2]
[322753817,1713246632276,-1304.3249274,0.00017523,2]
[322753818,1713246632285,-1455.4008913,0.00017628,2]
[322753819,1713246632295,-186.4381618,0.00018332,2]
[322753820,1713246632305,-420.0,0.00019116,2]
[322753821,1713246632316,-665.40133466,0.000199,2]
[322753822,1713246632324,-8000.0,0.0002,2]
[322753823,1713246632334,-200.0,0.0002,2]
[322753824,1713246632343,-587.0,0.00021028,2]
[322753825,1713246632352,-611.7585137,0.00021918,2]
[322753826,1713246632361,-365.64076565,0.000231,2]
[322753827,1713246632370,-823.0,0.00023131,2]
[322753828,1713246632379,-665.4013346,0.00024186,2]
[322753829,1713246632388,-651.87717,0.00024768,2]
[322753830,1713246632397,-1152.0,0.00025444,2]
[322753831,1713246632407,-160.458547,0.00027397,2]
[322753832,1713246632420,-1613.0,0.00027988,2]
[322753833,1713246632549,-442.6157212,0.00027998,2]
[322753834,1713246632574,-500.0,0.00027999,2]
[322753835,1713246632583,-327.78737273,0.00027999,2]
[322753836,1713246632592,-500.0,0.00027999,2]
[322753837,1713246632601,-18608.2175782,0.00028,14]
[322753838,1713246632613,-50624.44564803,0.00028,14]
[322753839,1713246632625,-1719.31632893,0.00028,14]
[322753862,1713246638190,-304.46999999,0.00017375,2]
[322753863,1713246638201,-234.64302301,0.00017375,2]
[322753864,1713246638210,-284.92409229,0.00017379,2]
[322753865,1713246638219,-29797.85454601,0.00028,14]
[322753866,1713246638231,-365.64076565,0.000281,2]
[322753867,1713246638241,-665.4013346,0.00028471,4]
[322753868,1713246638251,-928.62610135,0.0003,4]
[322753869,1713246638260,-33649.38484284,0.0003,2]
[322753870,1713246638270,-2258.0,0.00030787,2]
[322753871,1713246638279,-215.78377448,0.000309,2]
[322753872,1713246638288,-8599.74151977,0.00031,5]
[322754001,1713246646229,-4908.48846546,0.00030999,2]
[322754002,1713246646240,-612.8665392,0.00031,5]
[322754003,1713246647343,500.0,0.00033997,120]
[322754008,1713246777598,500.0,0.00033997,120]
[322754010,1713246902056,500.0,0.00033997,120]
[322754011,1713246907646,500.0,0.00033997,120]
[322754012,1713246908440,500.0,0.00033997,120]
[322754013,1713246909204,500.0,0.00033997,120]
[322754014,1713246909950,500.0,0.00033997,120]
[322754015,1713246910737,500.0,0.00033997,120]
[322754016,1713246911536,500.0,0.00033997,120]
[322754017,1713246912308,500.0,0.00033997,120]
[322754018,1713246913083,500.0,0.00033997,120]
[322754019,1713246913866,500.0,0.00033997,120]
[322754020,1713246914701,500.0,0.00033997,120]
[322754021,1713246992749,-3571.90672437,0.00031,30]
[322754023,1713247148467,-500.0,0.00033997,120]
[322754024,1713247148491,-500.0,0.00033997,120]
[322754025,1713247148513,-500.0,0.00033997,120]
[322754026,1713247148536,-500.0,0.00033997,120]
[322754027,1713247148557,-500.0,0.00033997,120]
[322754028,1713247148579,-500.0,0.00033997,120]
[322754029,1713247148601,-500.0,0.00033997,120]
[322754030,1713247148624,-500.0,0.00033997,120]
[322754031,1713247148645,-500.0,0.00033997,120]
[322754032,1713247148665,-500.0,0.00033997,120]
[322754033,1713247148687,-500.0,0.00033997,120]
[322754034,1713247148710,-500.0,0.00033997,120]
[322754035,1713247148732,-500.0,0.00033997,120]
[322754036,1713247148757,-500.0,0.00033997,120]
[322754037,1713247148780,-155.0,0.00034218,35]
[322754038,1713247148801,-155.0,0.00034228,35]
[322754039,1713247148822,-155.0,0.00034238,35]
[322754040,1713247149053,-150.5,0.00034969,35]
[322754041,1713247149074,-3172.0,0.00034969,35]
[322754042,1713247149094,-150.5,0.00034969,35]
[322754043,1713247149332,-164.0,0.00034969,35]
[322754044,1713247149354,-3172.0,0.0003497,35]
[322754045,1713247149374,-164.0,0.0003497,35]
[322754046,1713247149399,-150.5,0.0003497,35]
[322754047,1713247149420,-155.0,0.0003497,35]
[322754048,1713247149451,-150.5,0.0003497,35]
[322754049,1713247149472,-150.5,0.0003497,35]
[322754050,1713247149493,-20821.1596,0.00034976,30]
[322754051,1713247149514,-150.5,0.00034979,35]
[322754052,1713247149536,-3172.0,0.00034979,35]
[322754053,1713247149557,-150.5,0.00034979,35]
[322754054,1713247149578,-164.0,0.00034979,35]
[322754055,1713247149603,-3172.0,0.0003498,35]
[322754056,1713247149624,-164.0,0.0003498,35]
[322754057,1713247149644,-150.5,0.0003498,35]
[322754058,1713247149665,-155.0,0.0003498,35]
[322754059,1713247149685,-150.5,0.0003498,35]
[322754060,1713247149704,-150.5,0.0003498,35]
[322754061,1713247149727,-151.18,0.00034989,35]
[322754062,1713247149748,-151.25,0.00034989,35]
[322754063,1713247149768,-150.5,0.00034989,35]
[322754064,1713247149788,-3172.0,0.00034989,35]
[322754065,1713247149808,-150.5,0.00034989,35]
[322754066,1713247149832,-164.0,0.00034989,35]
[322754067,1713247149853,-3172.0,0.0003499,35]
[322754068,1713247149872,-164.0,0.0003499,35]
[322754069,1713247149893,-150.5,0.0003499,35]
[322754070,1713247149914,-155.0,0.0003499,35]
[322754071,1713247149935,-150.89,0.0003499,35]
[322754072,1713247149955,-150.5,0.0003499,35]
[322754073,1713247149976,-150.5,0.0003499,35]
[322754074,1713247149997,-148522.0204,0.00035,30]
[322754104,1713247663202,208.1596218,0.00016353,2]
[322754170,1713247832370,-937.67905984,0.00017319,2]
[322754172,1713247832380,-563.75505077,0.0001732,2]
[322754174,1713247832389,-154.79876161,0.0001732,2]
[322754176,1713247832400,-1089.02483365,0.0001732,2]
[322754178,1713247832410,-519.15500103,0.00017321,2]
[322754180,1713247832420,-156.3137023,0.00017348,2]
[322754183,1713247832430,-300.0,0.00017349,2]
[322754186,1713247832440,-8692.01925851,0.0001735,2]
[322754189,1713247832453,-383.7998292,0.0001735,2]
[322754270,1713247838356,-18565.87303913,0.0001735,2]
[322754271,1713247838367,-351.0656644,0.00017379,2]
[322754272,1713247838376,-420.0,0.00019084,2]
[322754273,1713247838385,-200.0,0.0002,2]
[322754274,1713247838395,-8000.0,0.0002,2]
[322754275,1713247838405,-587.0,0.00020992,2]
[322754276,1713247838415,-823.0,0.00023092,2]
[322754277,1713247838424,-1152.0,0.00025401,2]
[322754278,1713247838438,-323.726035,0.00027397,2]
[322754279,1713247838447,-201.406843,0.00027397,2]
[322754280,1713247838457,-265.929948,0.00027397,2]
[322754281,1713247838467,-220.0,0.00027941,2]
[322754282,1713247838477,-3000.0,0.000295,4]
[322754283,1713247838487,-3000.0,0.000298,4]
[322754284,1713247838497,-928.55933081,0.00030597,4]
[322754285,1713247838507,-4551.6277069,0.00031,2]
[322754286,1713247838516,-3000.0,0.00031,4]
[322754287,1713247838526,-10629.16568609,0.00031,5]
[322754288,1713247838535,-3000.0,0.000312,4]
[322754289,1713247838545,-3000.0,0.000314,4]
[322754290,1713247838555,-3000.0,0.000315,4]
[322754291,1713247838564,-3000.0,0.000316,4]
[322754292,1713247838574,-154.79876161,0.0003189,10]
[322754293,1713247838585,-3000.0,0.000322,4]
[322754294,1713247838596,-150.0,0.000329,2]
[322754295,1713247838610,-3000.0,0.00033,4]
[322754296,1713247838620,-323.726035,0.00033165,2]
[322754297,1713247838631,-265.929948,0.00033165,2]
[322754298,1713247838640,-306.0,0.00033249,2]
[322754299,1713247838650,-203.2157658,0.00033249,2]
[322754300,1713247838661,-203.2157658,0.00033249,2]
[322754301,1713247838671,-406.0357511,0.00033249,2]
[322754302,1713247838684,-203.2157658,0.00033249,2]
[322754303,1713247838694,-203.2157658,0.00033249,2]
[322754304,1713247838704,-203.2157658,0.00033249,2]
[322754305,1713247838713,-157.2335145,0.00033249,2]
[322754306,1713247838723,-153.0,0.00033249,2]
[322754307,1713247838733,-153.0,0.00033249,2]
[322754308,1713247838743,-153.0,0.00033249,2]
[322754309,1713247838753,-437.0,0.00033333,30]
[322754310,1713247838763,-167.98399902,0.00033903,2]
[322754311,1713247838773,-153.0,0.00033918,2]
[322754312,1713247838782,-514.65502232,0.00033997,4]
[322754313,1713247838792,-1530.60480682,0.00034,5]
[322754314,1713247838801,-500.0,0.00034,120]
[322754315,1713247838810,-500.0,0.00034,120]
[322754316,1713247838820,-500.0,0.00034,120]
[322754317,1713247838829,-500.0,0.00034,120]
[322754318,1713247838839,-500.0,0.00034,120]
[322754319,1713247838848,-500.0,0.00034,120]
[322754320,1713247838858,-500.0,0.00034,120]
[322754321,1713247838869,-500.0,0.00034,120]
[322754322,1713247838878,-500.0,0.00034,120]
[322754323,1713247838887,-500.0,0.00034,120]
[322754324,1713247838897,-500.0,0.00034,120]
[322754325,1713247838906,-500.0,0.00034,120]
[322754326,1713247838915,-500.0,0.00034,120]
[322754327,1713247838924,-500.0,0.00034,120]
[322754328,1713247838933,-500.0,0.00034,120]
[322754329,1713247838943,-500.0,0.00034,120]
[322754330,1713247838952,-500.0,0.00034,120]
[322754331,1713247838961,-500.0,0.00034,120]
[322754332,1713247838970,-500.0,0.00034,120]
[322754333,1713247838980,-465.51859638,0.00034,4]
[322754334,1713247838990,-306.0,0.0003407,2]
[322754335,1713247838999,-306.0,0.0003407,2]
[322754336,1713247839009,-209.22817449,0.0003411,2]